Workbook

Sheet Diba
A3: =DibaAltres!A3 -> estat d'execució del pressupost | K3: exercici corrent
A4: resum per capítols | K4: 31 de març de 2021
A7: ingressos
A9: capítol pressupostari | D9: Pressupost inicial | E9: Modificacions | F9: Pressupost actual | G9: Drets reconeguts nets | H9: Recaptació | I9: Pendent de cobrament | K9: % (D)/(C)
D10: (A) | E10: (B) | F10: (C) = (A)+(B) | G10: (D) | H10: (E) | I10: (F) = (D)+(E) | K10: (G)
A11: 1 | B11: Impostos directes | D11: 140297000 | E11: 0 | F11: 140297000 | G11: 26214790.36 | H11: 25765756.99 | I11: 449033.37 | K11: =IF(F11=0,0,G11/F11) -> 0.1868521092
A12: 2 | B12: Impostos indirectes | D12: 90354500 | E12: 0 | F12: 90354500 | G12: 20595766.7 | H12: 20595766.7 | I12: 0 | K12: 0.2279440061
A13: 3 | B13: Taxes i altres ingressos | D13: 4190000 | E13: 0 | F13: 4190000 | G13: 1306180.87 | H13: 713151.67 | I13: 593029.2 | K13: 0.3117376778
A14: 4 | B14: Transferències corrents | D14: 536252750 | E14: 18257075.06 | F14: 554509825.1 | G14: 133467942.5 | H14: 133217891.8 | I14: 250050.72 | K14: 0.240695361
A15: 5 | B15: Ingressos patrimonials | D15: 2589750 | E15: 0 | F15: 2589750 | G15: 621157.79 | H15: 276794.46 | I15: 344363.33 | K15: 0.2398524143
B16: Ingressos corrents (I1) | D16: =SUM(D11:D15) -> 773684000 | E16: 18257075.06 | F16: 791941075.1 | G16: =SUM(G11:G15) -> 182205838.2 | H16: =SUM(H11:H15) -> 180569361.6 | I16: 1636476.62 | K16: 0.2300749942
A17: 6 | B17: Alienació de béns | D17: 0 | E17: 0 | F17: 0 | G17: 128204.35 | H17: 95874.55 | I17: 32329.8 | K17: 0
A18: 7 | B18: Transferències capital | D18: 1100000 | E18: 0 | F18: 1100000 | G18: 1198582.01 | H18: 109608.24 | I18: 1088973.77 | K18: 1.089620009
B19: Ingressos de capital (I2) | D19: =D17+D18 -> 1100000 | E19: 0 | F19: 1100000 | G19: =G17+G18 -> 1326786.36 | H19: =H17+H18 -> 205482.79 | I19: 1121303.57 | K19: 1.206169418
A20: 8 | B20: Actius financers | D20: 190450000 | E20: 254679508.3 | F20: 445129508.3 | G20: 547592.49 | H20: 413503.37 | I20: 134089.12 | K20: 0.0012301869
A21: 9 | B21: Passius financers | D21: 0 | E21: 0 | F21: 0 | G21: 0 | H21: 0 | I21: 0 | K21: 0
B22: Ingressos financers (I3) | D22: =D20+D21 -> 190450000 | E22: 254679508.3 | F22: 445129508.3 | G22: =G20+G21 -> 547592.49 | H22: =H20+H21 -> 413503.37 | I22: 134089.12 | K22: 0.0012301869
B25: Total d'ingressos | D25: =D16+D19+D22 -> 965234000 | E25: 272936583.3 | F25: 1238170583 | G25: 184080217.1 | H25: 181188347.8 | I25: 2891869.31 | K25: =IF(F25=0,0,G25/F25) -> 0.1486711279
A29: despeses
A31: capítol pressupostari | D31: Pressupost inicial | E31: Modificacions | F31: Pressupost actual | G31: Obligacions reconegudes | H31: Pagaments | I31: Pendent de pagament | K31: % (D)/(C)
D32: (A) | E32: (B) | F32: (C) = (A)+(B) | G32: (D) | H32: (E) | I32: (F) = (D)+(E) | K32: (G)
A33: 1 | B33: Despeses de personal | D33: 242345000 | E33: 4442614.53 | F33: 246787614.5 | G33: 42429626.66 | H33: 42429176.66 | I33: 450 | K33: =IF(F33=0,0,G33/F33) -> 0.1719276988
A34: 2 | B34: Despeses béns corrents i serveis | D34: 110078985 | E34: 19308458.79 | F34: 129387443.8 | G34: 15680196.55 | H34: 14829353.79 | I34: 850842.76 | K34: 0.1211879305
A35: 3 | B35: Despeses financeres | D35: 1769000 | E35: -1465000 | F35: 304000 | G35: 33734.88 | H35: 33734.88 | I35: 0 | K35: 0.11097
A36: 4 | B36: Transferències corrents | D36: 239310910 | E36: 123557483.9 | F36: 362868393.9 | G36: 54985225.78 | H36: 52676241.82 | I36: 2308983.96 | K36: 0.1515293883
A37: 5 | B37: Fons de contingència i altres impr. | D37: 5000000 | E37: 0 | F37: 5000000 | G37: 0 | H37: 0 | I37: 0 | K37: =IF(F37=0,0,G37/F37) -> 0
B38: Despeses corrents (D1) | D38: =SUM(D33:D37) -> 598503895 | E38: 145843557.3 | F38: 744347452.3 | G38: 113128783.9 | H38: 109968507.1 | I38: 3160276.72 | K38: 0.1519838397
A39: 6 | B39: Inversions reals | D39: 51007000 | E39: 32746179.74 | F39: 83753179.74 | G39: 8487067.38 | H39: 8030698.52 | I39: 456368.86 | K39: 0.1013342706
A40: 7 | B40: Transferències capital | D40: 122506115 | E40: 87322179.57 | F40: 209828294.6 | G40: 22744032.22 | H40: 18395803.17 | I40: 4348229.05 | K40: 0.1083935428
B41: Despeses de capital (D2) | D41: =D39+D40 -> 173513115 | E41: 120068359.3 | F41: 293581474.3 | G41: 31231099.6 | H41: 26426501.69 | I41: 4804597.91 | K41: 0.1063796674
A42: 8 | B42: Actius financers | D42: 193216990 | E42: 7024666.76 | F42: 200241656.8 | G42: 171653241.9 | H42: 121653241.9 | I42: 50000000 | K42: 0.8572304319
A43: 9 | B43: Passius financers | D43: 0 | E43: 0 | F43: 0 | G43: 0 | H43: 0 | I43: 0 | K43: 0
B44: Despeses financeres (D3) | D44: =D42+D43 -> 193216990 | E44: 7024666.76 | F44: 200241656.8 | G44: 171653241.9 | H44: 121653241.9 | I44: 50000000 | K44: 0.8572304319
B47: ="Total de "&A29 -> Total de despeses | D47: =D38+D41+D44 -> 965234000 | E47: 272936583.3 | F47: 1238170583 | G47: 316013125.4 | H47: 258048250.7 | I47: 57964874.63 | K47: =IF(F47=0,0,G47/F47) -> 0.2552258385
A51: diferències
A54: en operacions corrents (I1)-(D1) | D54: =D16-D38 -> 175180105 | E54: -127586482.2 | F54: 47593622.79 | G54: 69077054.38 | H54: 70600854.48 | I54: -1523800.1
A55: en operacions de capital (I2)-(D2) | D55: =D19-D41 -> -172413115 | E55: -120068359.3 | F55: -292481474.3 | G55: -29904313.24 | H55: -26221018.9 | I55: -3683294.34
A56: en operacions financeres (I3)-(D3) | D56: =D22-D44 -> -2766990 | E56: 247654841.5 | F56: 244887851.5 | G56: -171105649.4 | H56: -121239738.5 | I56: -49865910.88
B59: ="Total "&A51 -> Total diferències | D59: =D25-D47 -> 0 | E59: 0 | F59: 0 | G59: -131932908.3 | H59: -76859902.95 | I59: -55073005.32
K68: extret el 9/4/2021

Sheet DibaAltres
A3: estat d'execució del pressupost | K3: exercici corrent
A4: resum per capítols | K4: =Diba!K4 -> 31 de març de 2021
A7: despeses
A9: capítol pressupostari | D9: Crèdits definitius | E9: Despeses autoritzades | F9: Despeses compromeses | G9: Obligacions reconegudes | H9: Crèdit disponible | I9: Romanents de crèdit | K9: % (C)/(A)
D10: (A) | E10: (B) | F10: (C) | G10: (D) | H10: (E) | I10: (F) = (A)-(D) | K10: (G)
A11: 1 | B11: Despeses de personal | D11: 246787614.5 | E11: 44903717.89 | F11: 44903717.89 | G11: 42429626.66 | H11: 201883896.6 | I11: 204357987.9 | K11: =IF(D11=0,0,F11/D11) -> 0.1819528827
A12: 2 | B12: Despeses béns corrents i serveis | D12: 129387443.8 | E12: 82021609.98 | F12: 77121430.05 | G12: 15680196.55 | H12: 43818201.68 | I12: 113707247.2 | K12: =IF(D12=0,0,F12/D12) -> 0.5960503414
A13: 3 | B13: Despeses financeres | D13: 304000 | E13: 217934.66 | F13: 217934.66 | G13: 33734.88 | H13: 86065.34 | I13: 270265.12 | K13: 0.7168903289
A14: 4 | B14: Transferències corrents | D14: 362868393.9 | E14: 276676028.6 | F14: 236704781.3 | G14: 54985225.78 | H14: 79769528.41 | I14: 307883168.2 | K14: 0.652315785
A15: 5 | B15: Fons de contingència i altres impr. | D15: 5000000 | E15: 0 | F15: 0 | G15: 0 | H15: 5000000 | I15: 5000000 | K15: =IF(D15=0,0,F15/D15) -> 0
B16: Despeses corrents (D1) | D16: =SUM(D11:D15) -> 744347452.3 | E16: 403819291.1 | F16: 358947863.9 | G16: 113128783.9 | H16: 330557692.1 | I16: 631218668.4 | K16: 0.4822316013
A17: 6 | B17: Inversions reals | D17: 83753179.74 | E17: 45388761.98 | F17: 33523840.81 | G17: 8487067.38 | H17: 35582244.03 | I17: 75266112.36 | K17: 0.4002694693
A18: 7 | B18: Transferències capital | D18: 209828294.6 | E18: 191141028 | F18: 170666830.7 | G18: 22744032.22 | H18: 18648367.43 | I18: 187084262.4 | K18: 0.8133642368
B19: Despeses de capital (D2) | D19: =D17+D18 -> 293581474.3 | E19: 236529790 | F19: 204190671.5 | G19: 31231099.6 | H19: 54230611.46 | I19: 262350374.7 | K19: 0.6955162003
A20: 8 | B20: Actius financers | D20: 200241656.8 | E20: 187717792.7 | F20: 178717792.7 | G20: 171653241.9 | H20: 12523864.11 | I20: 28588414.86 | K20: 0.8925105572
A21: 9 | B21: Passius financers | D21: 0 | E21: 0 | F21: 0 | G21: 0 | H21: 0 | I21: 0 | K21: 0
B22: Despeses financeres (D3) | D22: =D20+D21 -> 200241656.8 | E22: 187717792.7 | F22: 178717792.7 | G22: 171653241.9 | H22: 12523864.11 | I22: 28588414.86 | K22: 0.8925105572
B25: ="Total de "&A7 -> Total de despeses | D25: =D16+D19+D22 -> 1238170583 | E25: 828066873.8 | F25: 741856328 | G25: 316013125.4 | H25: 397312167.6 | I25: 922157458 | K25: =IF(D25=0,0,F25/D25) -> 0.5991551875
K70: extret el 9/4/2021

Sheet GrIngressos
K1: Intervenció General
K84: extret el 9/4/2021

Sheet GrDespeses
K1: Intervenció General
K83: extret el 9/4/2021

Sheet CGrafics
A3: calculs per gràfics del pressupost actual
A6: ingressos
B8: Previsions inicials | C8: Previsions definitives | D8: Drets reconeguts nets | E8: Cobraments realitzats | F8: Pendent de cobrament
B9: 965.234 | C9: 1238.170583 | D9: 184.0802171 | E9: 181.1883478 | F9: 2.89186931
A12: drets reconeguts nets
B14: 1 | C14: 2 | D14: 3 | E14: 4 | F14: 5 | G14: 6 | H14: 7 | I14: 8 | J14: 9
A15: drets reconeguts nets | B15: 26214790.36 | C15: 20595766.7 | D15: 1306180.87 | E15: 133467942.5 | F15: 621157.79 | G15: 128204.35 | H15: 1198582.01 | I15: 547592.49 | J15: 0
A16: previsions definitives | B16: 140297000 | C16: 90354500 | D16: 4190000 | E16: 554509825.1 | F16: 2589750 | G16: 0 | H16: 1100000 | I16: 445129508.3 | J16: 0
A17: drets milions | B17: 26.21479036 | C17: 20.5957667 | D17: 1.30618087 | E17: 133.4679425 | F17: 0.62115779 | G17: 0.12820435 | H17: 1.19858201 | I17: 0.54759249 | J17: 0
A18: definitives milions | B18: 140.297 | C18: 90.3545 | D18: 4.19 | E18: 554.5098251 | F18: 2.58975 | G18: 0 | H18: 1.1 | I18: 445.1295083 | J18: 0
A21: ingressos nets
A23: recaptació neta | B23: =E9 -> 181.1883478
A24: pendent de cobrament | B24: =F9 -> 2.89186931
A27: despeses
B29: Crèdits inicials | C29: Crèdits definitius | D29: Disposicions | E29: Obligacions reconegudes | F29: Pagaments realitzats | G29: Pendent de pagament
B30: 965.234 | C30: 1238.170583 | D30: 741.856328 | E30: 316.0131254 | F30: 258.0482507 | G30: 57.96487463
A33: obligacions reconegudes
B35: 1 | C35: 2 | D35: 3 | E35: 4 | F35: 5 | G35: 6 | H35: 7 | I35: 8 | J35: 9
A36: despeses compromeses | B36: 44903717.89 | C36: 77121430.05 | D36: 217934.66 | E36: 236704781.3 | F36: 0 | G36: 33523840.81 | H36: 170666830.7 | I36: 178717792.7 | J36: 0
A37: crèdits definitius | B37: 246787614.5 | C37: 129387443.8 | D37: 304000 | E37: 362868393.9 | F37: 5000000 | G37: 83753179.74 | H37: 209828294.6 | I37: 200241656.8 | J37: 0
A38: despeses compr. milions | B38: 44.90371789 | C38: 77.12143005 | D38: 0.21793466 | E38: 236.7047813 | F38: 0 | G38: 33.52384081 | H38: 170.6668307 | I38: 178.7177927 | J38: 0
A39: crèdits definitius milions | B39: 246.7876145 | C39: 129.3874438 | D39: 0.304 | E39: 362.8683939 | F39: 5 | G39: 83.75317974 | H39: 209.8282946 | I39: 200.2416568 | J39: 0
A42: pagaments
A44: pagaments | B44: =F30 -> 258.0482507
A45: pendent de pagament | B45: =G30 -> 57.96487463
